[Event "Titled Tuesday Blitz May 16 Early 2023"]
[White "Van Dael, Siem"]
[Black "Ginzburg, Yakov"]
[WhiteFideId "1049771"]
[BlackFideId "4157176"]
[WhiteElo "2336"]
[BlackElo "2305"]
[Result "0-1"]
[Round "08"]
[TimeControl "180+2"]
[Date "2023.05.16"]
[WhiteClock "0:00:00"]
[BlackClock "0:01:13"]

1. e4 {[%clk 0:03:00]}  c5 {[%clk 0:02:56]} 2. Nf3 {[%clk 0:02:59]}  e6 {[%clk 0:02:57]} 3. d4 {[%clk 0:02:59]}  cxd4 {[%clk 0:02:57]} 4. Nxd4 {[%clk 0:03:00]}  Nf6 {[%clk 0:02:57]} 5. Nc3 {[%clk 0:03:00]}  Nc6 {[%clk 0:02:58]} 6. Ndb5 {[%clk 0:03:00]}  Bb4 {[%clk 0:02:56]} 7. a3 {[%clk 0:02:59]}  Bxc3+ {[%clk 0:02:56]} 8. Nxc3 {[%clk 0:03:00]}  d5 {[%clk 0:02:57]} 9. exd5 {[%clk 0:02:59]}  exd5 {[%clk 0:02:58]} 10. Bd3 {[%clk 0:02:59]}  O-O {[%clk 0:02:58]} 11. O-O {[%clk 0:02:54]}  d4 {[%clk 0:02:58]} 12. Ne2 {[%clk 0:02:54]}  h6 {[%clk 0:02:57]} 13. f3 {[%clk 0:02:45]}  Qd5 {[%clk 0:02:52]} 14. Bd2 {[%clk 0:02:33]}  Bf5 {[%clk 0:02:51]} 15. Nf4 {[%clk 0:02:28]}  Qd7 {[%clk 0:02:51]} 16. Re1 {[%clk 0:02:25]}  Rfe8 {[%clk 0:02:50]} 17. b4 {[%clk 0:02:22]}  a6 {[%clk 0:02:46]} 18. a4 {[%clk 0:02:20]}  Rxe1+ {[%clk 0:02:45]} 19. Qxe1 {[%clk 0:02:20]}  Re8 {[%clk 0:02:45]} 20. Qg3 {[%clk 0:02:19]}  Ne5 {[%clk 0:02:42]} 21. b5 {[%clk 0:01:54]}  Nxd3 {[%clk 0:02:40]} 22. Nxd3 {[%clk 0:01:50]}  axb5 {[%clk 0:02:31]} 23. Bxh6 {[%clk 0:01:40]}  Bg6 {[%clk 0:02:30]} 24. Ne5 {[%clk 0:01:35]}  Qf5 {[%clk 0:02:04]} 25. Nxg6 {[%clk 0:01:27]}  fxg6 {[%clk 0:02:01]} 26. Bg5 {[%clk 0:01:14]}  bxa4 {[%clk 0:01:59]} 27. Bxf6 {[%clk 0:00:57]}  gxf6 {[%clk 0:01:58]} 28. Qc7 {[%clk 0:00:53]}  Qb5 {[%clk 0:01:47]} 29. Rd1 {[%clk 0:00:30]}  Qe2 {[%clk 0:01:43]} 30. Rf1 {[%clk 0:00:18]}  a3 {[%clk 0:01:29]} 31. Qxb7 {[%clk 0:00:17]}  a2 {[%clk 0:01:27]} 32. Qb3+ {[%clk 0:00:16]}  Qe6 {[%clk 0:01:27]} 33. Qxe6+ {[%clk 0:00:15]}  Rxe6 {[%clk 0:01:27]} 34. Ra1 {[%clk 0:00:15]}  Ra6 {[%clk 0:01:26]} 35. Kf2 {[%clk 0:00:16]}  Kf7 {[%clk 0:01:27]} 36. Ke2 {[%clk 0:00:16]}  Ke6 {[%clk 0:01:27]} 37. Kd3 {[%clk 0:00:17]}  Kd5 {[%clk 0:01:27]} 38. Kd2 {[%clk 0:00:12]}  Kc4 {[%clk 0:01:27]} 39. g3 {[%clk 0:00:11]}  f5 {[%clk 0:01:23]} 40. f4 {[%clk 0:00:11]}  Ra3 {[%clk 0:01:20]} 41. Kc1 {[%clk 0:00:11]}  Kc3 {[%clk 0:01:20]} 42. h3 {[%clk 0:00:10]}  Ra8 {[%clk 0:01:18]} 43. h4 {[%clk 0:00:07]}  Re8 {[%clk 0:01:16]} 44. Kd1 {[%clk 0:00:06]}  Kb2 {[%clk 0:01:15]} 45. Rxa2+ {[%clk 0:00:04]}  Kxa2 {[%clk 0:01:15]} 46. Kd2 {[%clk 0:00:05]}  Re3 {[%clk 0:01:14]} 47. c3 {[%clk 0:00:00]}  Rxc3 {[%clk 0:01:13]} 0-1


[Site "https://www.chess.com"]

[Event "Titled Tuesday Blitz May 16 Early 2023"]
[White "Kalajzic, Ivan"]
[Black "Krsnik Cohar, Ivan Vihor"]
[WhiteFideId "14506378"]
[BlackFideId "14520044"]
[WhiteElo "2203"]
[BlackElo "2414"]
[Result "1/2-1/2"]
[Round "08"]
[TimeControl "180+2"]
[Date "2023.05.16"]
[WhiteClock "0:00:34"]
[BlackClock "0:00:17"]

1. b3 {[%clk 0:03:00]}  Nf6 {[%clk 0:02:59]} 2. Bb2 {[%clk 0:03:01]}  e6 {[%clk 0:03:00]} 3. e3 {[%clk 0:03:01]}  d5 {[%clk 0:03:01]} 4. Nf3 {[%clk 0:03:01]}  c5 {[%clk 0:03:01]} 5. Ne5 {[%clk 0:03:00]}  Nc6 {[%clk 0:03:01]} 6. Bb5 {[%clk 0:03:00]}  Bd7 {[%clk 0:03:01]} 7. Bxc6 {[%clk 0:03:00]}  Bxc6 {[%clk 0:03:01]} 8. O-O {[%clk 0:03:00]}  Bd6 {[%clk 0:03:00]} 9. d3 {[%clk 0:03:00]}  O-O {[%clk 0:02:59]} 10. Nd2 {[%clk 0:03:00]}  Nd7 {[%clk 0:02:57]} 11. Nxc6 {[%clk 0:02:54]}  bxc6 {[%clk 0:02:58]} 12. e4 {[%clk 0:02:52]}  Be5 {[%clk 0:02:56]} 13. Bxe5 {[%clk 0:02:50]}  Nxe5 {[%clk 0:02:57]} 14. f4 {[%clk 0:02:47]}  Ng6 {[%clk 0:02:57]} 15. g3 {[%clk 0:02:41]}  f5 {[%clk 0:02:47]} 16. exf5 {[%clk 0:02:38]}  exf5 {[%clk 0:02:46]} 17. Re1 {[%clk 0:02:35]}  Re8 {[%clk 0:02:44]} 18. Qh5 {[%clk 0:02:31]}  Qf6 {[%clk 0:02:44]} 19. Nf3 {[%clk 0:02:27]}  c4 {[%clk 0:01:54]} 20. Qg5 {[%clk 0:02:12]}  Qf8 {[%clk 0:01:38]} 21. Kg2 {[%clk 0:01:56]}  Rxe1 {[%clk 0:01:14]} 22. Rxe1 {[%clk 0:01:55]}  Re8 {[%clk 0:01:14]} 23. Rxe8 {[%clk 0:01:44]}  Qxe8 {[%clk 0:01:15]} 24. Kf2 {[%clk 0:01:45]}  cxb3 {[%clk 0:01:08]} 25. axb3 {[%clk 0:01:45]}  Qf8 {[%clk 0:00:46]} 26. d4 {[%clk 0:01:38]}  c5 {[%clk 0:00:43]} 27. Ne5 {[%clk 0:01:31]}  cxd4 {[%clk 0:00:33]} 28. Nxg6 {[%clk 0:01:29]}  hxg6 {[%clk 0:00:33]} 29. Qxg6 {[%clk 0:01:29]}  Qc5 {[%clk 0:00:19]} 30. Qe8+ {[%clk 0:01:21]}  Kh7 {[%clk 0:00:18]} 31. Qh5+ {[%clk 0:01:16]}  Kg8 {[%clk 0:00:19]} 32. Qe8+ {[%clk 0:00:51]}  Kh7 {[%clk 0:00:18]} 33. Qh5+ {[%clk 0:00:35]}  Kg8 {[%clk 0:00:17]} 34. Qe8+ {[%clk 0:00:34]} 1/2-1/2


[Site "https://www.chess.com"]

[Event "Titled Tuesday Blitz May 16 Early 2023"]
[White "Mohammed, Zozek Salah Mohammed"]
[Black "Tomiello, Mateus Costamilan"]
[WhiteFideId "4803361"]
[BlackFideId "22701958"]
[WhiteElo "2211"]
[BlackElo "1990"]
[Result "0-1"]
[Round "08"]
[TimeControl "180+2"]
[Date "2023.05.16"]
[WhiteClock "0:00:12"]
[BlackClock "0:00:30"]

1. d4 {[%clk 0:01:56]}  d5 {[%clk 0:02:58]} 2. c4 {[%clk 0:01:55]}  e6 {[%clk 0:02:58]} 3. Nf3 {[%clk 0:01:56]}  Nf6 {[%clk 0:02:57]} 4. g3 {[%clk 0:01:57]}  Be7 {[%clk 0:02:53]} 5. Bg2 {[%clk 0:01:57]}  O-O {[%clk 0:02:54]} 6. O-O {[%clk 0:01:57]}  dxc4 {[%clk 0:02:55]} 7. Na3 {[%clk 0:01:52]}  Bxa3 {[%clk 0:02:31]} 8. bxa3 {[%clk 0:01:53]}  Nc6 {[%clk 0:02:32]} 9. Re1 {[%clk 0:01:47]}  Rb8 {[%clk 0:02:29]} 10. e4 {[%clk 0:01:47]}  b5 {[%clk 0:02:27]} 11. e5 {[%clk 0:01:46]}  Nd5 {[%clk 0:02:27]} 12. Ng5 {[%clk 0:01:38]}  h6 {[%clk 0:02:23]} 13. Ne4 {[%clk 0:01:37]}  a5 {[%clk 0:02:16]} 14. Qh5 {[%clk 0:01:30]}  Qe7 {[%clk 0:01:41]} 15. Bxh6 {[%clk 0:01:19]}  Nxd4 {[%clk 0:01:08]} 16. Bxg7 {[%clk 0:01:10]}  Kxg7 {[%clk 0:01:00]} 17. Qg4+ {[%clk 0:01:09]}  Kh8 {[%clk 0:00:56]} 18. Qh5+ {[%clk 0:00:56]}  Kg7 {[%clk 0:00:52]} 19. Qg4+ {[%clk 0:00:56]}  Kh8 {[%clk 0:00:52]} 20. Ng5 {[%clk 0:00:30]}  Rg8 {[%clk 0:00:48]} 21. h4 {[%clk 0:00:20]}  Nf5 {[%clk 0:00:45]} 22. Qh5+ {[%clk 0:00:18]}  Kg7 {[%clk 0:00:44]} 23. g4 {[%clk 0:00:15]}  Rh8 {[%clk 0:00:39]} 24. Qxf7+ {[%clk 0:00:13]}  Qxf7 {[%clk 0:00:39]} 25. Nxf7 {[%clk 0:00:13]}  Kxf7 {[%clk 0:00:38]} 26. gxf5 {[%clk 0:00:14]}  Nf4 {[%clk 0:00:31]} 27. f6 {[%clk 0:00:12]}  Rg8 {[%clk 0:00:30]} 0-1


[Site "https://www.chess.com"]

[Event "Titled Tuesday Blitz May 16 Early 2023"]
[White "Khamdamova, Afruza"]
[Black "Korpics, Zsolt"]
[WhiteFideId "14210444"]
[BlackFideId "705241"]
[WhiteElo "2312"]
[BlackElo "2353"]
[Result "1-0"]
[Round "08"]
[TimeControl "180+2"]
[Date "2023.05.16"]
[WhiteClock "0:00:07"]
[BlackClock "0:00:06"]

1. d4 {[%clk 0:02:58]}  Nf6 {[%clk 0:02:58]} 2. Nf3 {[%clk 0:02:57]}  e6 {[%clk 0:02:56]} 3. g3 {[%clk 0:02:56]}  b5 {[%clk 0:02:55]} 4. Bg2 {[%clk 0:02:56]}  Bb7 {[%clk 0:02:55]} 5. O-O {[%clk 0:02:57]}  c5 {[%clk 0:02:54]} 6. b3 {[%clk 0:02:56]}  cxd4 {[%clk 0:02:52]} 7. Qxd4 {[%clk 0:02:56]}  Nc6 {[%clk 0:02:47]} 8. Qd1 {[%clk 0:02:56]}  Be7 {[%clk 0:02:46]} 9. Bb2 {[%clk 0:02:56]}  O-O {[%clk 0:02:47]} 10. Nbd2 {[%clk 0:02:56]}  d5 {[%clk 0:02:45]} 11. a4 {[%clk 0:02:52]}  b4 {[%clk 0:02:44]} 12. Ne5 {[%clk 0:02:47]}  Nxe5 {[%clk 0:02:39]} 13. Bxe5 {[%clk 0:02:48]}  Nd7 {[%clk 0:02:39]} 14. Bb2 {[%clk 0:02:45]}  Bf6 {[%clk 0:02:39]} 15. Bxf6 {[%clk 0:02:44]}  Nxf6 {[%clk 0:02:36]} 16. Nf3 {[%clk 0:02:43]}  Qc7 {[%clk 0:02:31]} 17. Qd4 {[%clk 0:02:38]}  a5 {[%clk 0:02:29]} 18. Rac1 {[%clk 0:02:36]}  Rac8 {[%clk 0:02:25]} 19. Rfd1 {[%clk 0:02:34]}  Ne4 {[%clk 0:02:20]} 20. e3 {[%clk 0:02:03]}  f6 {[%clk 0:02:05]} 21. Ne1 {[%clk 0:01:36]}  Nc3 {[%clk 0:02:01]} 22. Rd2 {[%clk 0:01:34]}  e5 {[%clk 0:02:00]} 23. Qd3 {[%clk 0:01:31]}  Rfd8 {[%clk 0:01:55]} 24. Qf5 {[%clk 0:01:25]}  Qb6 {[%clk 0:01:41]} 25. Nd3 {[%clk 0:01:07]}  Rc7 {[%clk 0:01:24]} 26. Bh3 {[%clk 0:00:53]}  Bc8 {[%clk 0:01:10]} 27. Qh5 {[%clk 0:00:51]}  Ne4 {[%clk 0:00:58]} 28. Re2 {[%clk 0:00:39]}  Ng5 {[%clk 0:00:51]} 29. Bxc8 {[%clk 0:00:27]}  Rdxc8 {[%clk 0:00:52]} 30. f4 {[%clk 0:00:22]}  e4 {[%clk 0:00:45]} 31. Ne1 {[%clk 0:00:18]}  Ne6 {[%clk 0:00:39]} 32. Qxd5 {[%clk 0:00:18]}  Qc6 {[%clk 0:00:24]} 33. Qxa5 {[%clk 0:00:16]}  Qc3 {[%clk 0:00:18]} 34. Qd5 {[%clk 0:00:14]}  Qc6 {[%clk 0:00:15]} 35. Qxc6 {[%clk 0:00:15]}  Rxc6 {[%clk 0:00:15]} 36. Rd2 {[%clk 0:00:15]}  Nc5 {[%clk 0:00:15]} 37. Rcd1 {[%clk 0:00:16]}  Ne6 {[%clk 0:00:13]} 38. Rd6 {[%clk 0:00:15]}  Kf7 {[%clk 0:00:12]} 39. Rxc6 {[%clk 0:00:15]}  Rxc6 {[%clk 0:00:13]} 40. Rd7+ {[%clk 0:00:16]}  Ke8 {[%clk 0:00:12]} 41. Rb7 {[%clk 0:00:16]}  Rd6 {[%clk 0:00:12]} 42. Rxb4 {[%clk 0:00:15]}  Rd1 {[%clk 0:00:12]} 43. Rxe4 {[%clk 0:00:15]}  Kd7 {[%clk 0:00:05]} 44. Kf2 {[%clk 0:00:14]}  Rd2+ {[%clk 0:00:06]} 45. Kf1 {[%clk 0:00:13]}  Rxh2 {[%clk 0:00:06]} 46. Ng2 {[%clk 0:00:11]}  Rh3 {[%clk 0:00:03]} 47. Kf2 {[%clk 0:00:11]}  Nc5 {[%clk 0:00:03]} 48. Rd4+ {[%clk 0:00:11]}  Ke6 {[%clk 0:00:04]} 49. a5 {[%clk 0:00:11]}  f5 {[%clk 0:00:03]} 50. b4 {[%clk 0:00:10]}  Ne4+ {[%clk 0:00:01]} 51. Kg1 {[%clk 0:00:02]}  Rxg3 {[%clk 0:00:02]} 52. a6 {[%clk 0:00:02]}  Rg6 {[%clk 0:00:01]} 53. a7 {[%clk 0:00:02]}  Rxg2+ {[%clk 0:00:01]} 54. Kxg2 {[%clk 0:00:02]}  Kf6 {[%clk 0:00:02]} 55. Rxe4 {[%clk 0:00:02]}  fxe4 {[%clk 0:00:01]} 56. a8=Q {[%clk 0:00:03]}  Kg6 {[%clk 0:00:02]} 57. Qd5 {[%clk 0:00:04]}  h6 {[%clk 0:00:02]} 58. Qxe4+ {[%clk 0:00:04]}  Kf6 {[%clk 0:00:03]} 59. Qe5+ {[%clk 0:00:04]}  Kf7 {[%clk 0:00:04]} 60. f5 {[%clk 0:00:05]}  Kg8 {[%clk 0:00:05]} 61. Qe6+ {[%clk 0:00:06]}  Kh7 {[%clk 0:00:05]} 62. f6 {[%clk 0:00:07]}  Kh8 {[%clk 0:00:06]} 63. Qe8+ {[%clk 0:00:06]}  Kh7 {[%clk 0:00:07]} 64. Qf7 {[%clk 0:00:07]}  h5 {[%clk 0:00:06]} 65. Qxg7# {[%clk 0:00:07]} 1-0


[Site "https://www.chess.com"]

[Event "Titled Tuesday Blitz May 16 Early 2023"]
[White "Llanos, Guillermo"]
[Black "Golubev, Mikhail"]
[WhiteFideId "100358"]
[BlackFideId "14100983"]
[WhiteElo "2225"]
[BlackElo "2374"]
[Result "0-1"]
[Round "08"]
[TimeControl "180+2"]
[Date "2023.05.16"]
[WhiteClock "0:00:06"]
[BlackClock "0:00:42"]

1. Nf3 {[%clk 0:02:55]}  d6 {[%clk 0:02:59]} 2. g3 {[%clk 0:02:52]}  g6 {[%clk 0:02:58]} 3. Bg2 {[%clk 0:02:52]}  Bg7 {[%clk 0:02:59]} 4. O-O {[%clk 0:02:52]}  e5 {[%clk 0:02:56]} 5. c4 {[%clk 0:02:51]}  Nc6 {[%clk 0:02:56]} 6. Nc3 {[%clk 0:02:52]}  f5 {[%clk 0:02:56]} 7. d3 {[%clk 0:02:51]}  h6 {[%clk 0:02:57]} 8. Rb1 {[%clk 0:02:50]}  a5 {[%clk 0:02:57]} 9. Bd2 {[%clk 0:02:50]}  Nf6 {[%clk 0:02:55]} 10. a3 {[%clk 0:02:48]}  O-O {[%clk 0:02:55]} 11. b4 {[%clk 0:02:48]}  axb4 {[%clk 0:02:54]} 12. axb4 {[%clk 0:02:48]}  g5 {[%clk 0:02:47]} 13. b5 {[%clk 0:02:47]}  Ne7 {[%clk 0:02:47]} 14. c5 {[%clk 0:02:24]}  Be6 {[%clk 0:02:35]} 15. cxd6 {[%clk 0:02:22]}  cxd6 {[%clk 0:02:32]} 16. d4 {[%clk 0:02:13]}  e4 {[%clk 0:02:30]} 17. Ne1 {[%clk 0:02:09]}  Qd7 {[%clk 0:02:28]} 18. f3 {[%clk 0:01:43]}  exf3 {[%clk 0:02:20]} 19. Bxf3 {[%clk 0:01:36]}  Ned5 {[%clk 0:02:14]} 20. Nxd5 {[%clk 0:01:27]}  Nxd5 {[%clk 0:02:06]} 21. Nc2 {[%clk 0:01:24]}  Rac8 {[%clk 0:01:55]} 22. e3 {[%clk 0:01:05]}  Nf6 {[%clk 0:01:31]} 23. Nb4 {[%clk 0:01:02]}  Bc4 {[%clk 0:01:22]} 24. Re1 {[%clk 0:00:54]}  d5 {[%clk 0:01:10]} 25. b6 {[%clk 0:00:50]}  Ne4 {[%clk 0:01:08]} 26. Rb2 {[%clk 0:00:34]}  f4 {[%clk 0:00:53]} 27. Bxe4 {[%clk 0:00:22]}  dxe4 {[%clk 0:00:53]} 28. Nc2 {[%clk 0:00:14]}  f3 {[%clk 0:00:46]} 29. Kf2 {[%clk 0:00:12]}  Qh3 {[%clk 0:00:44]} 30. Rh1 {[%clk 0:00:06]}  Qg2+ {[%clk 0:00:42]} 0-1


[Site "https://www.chess.com"]

[Event "Titled Tuesday Blitz May 16 Early 2023"]
[White "Yurasova, Daria"]
[Black "Szente Varga, Fruzsina"]
[WhiteFideId "34146919"]
[BlackFideId "712264"]
[WhiteElo "2109"]
[BlackElo "1994"]
[Result "1-0"]
[Round "08"]
[TimeControl "180+2"]
[Date "2023.05.16"]
[WhiteClock "0:00:12"]
[BlackClock "0:00:00"]

1. d4 {[%clk 0:03:00]}  Nf6 {[%clk 0:02:54]} 2. Bg5 {[%clk 0:03:00]}  g6 {[%clk 0:02:54]} 3. Bxf6 {[%clk 0:02:57]}  exf6 {[%clk 0:02:54]} 4. e3 {[%clk 0:02:58]}  d5 {[%clk 0:02:54]} 5. g3 {[%clk 0:02:58]}  Bg7 {[%clk 0:02:54]} 6. Bg2 {[%clk 0:02:58]}  f5 {[%clk 0:02:54]} 7. Ne2 {[%clk 0:02:59]}  O-O {[%clk 0:02:54]} 8. O-O {[%clk 0:03:00]}  c6 {[%clk 0:02:55]} 9. Nd2 {[%clk 0:03:00]}  Be6 {[%clk 0:02:56]} 10. Rc1 {[%clk 0:02:58]}  Nd7 {[%clk 0:02:56]} 11. c4 {[%clk 0:02:58]}  Nf6 {[%clk 0:02:55]} 12. Nf4 {[%clk 0:02:58]}  Ne4 {[%clk 0:02:54]} 13. cxd5 {[%clk 0:02:58]}  cxd5 {[%clk 0:02:51]} 14. Nb3 {[%clk 0:02:50]}  Rc8 {[%clk 0:02:50]} 15. Qd3 {[%clk 0:02:48]}  Qd7 {[%clk 0:02:45]} 16. Qe2 {[%clk 0:02:38]}  b6 {[%clk 0:02:44]} 17. h4 {[%clk 0:02:34]}  Qa4 {[%clk 0:02:40]} 18. Nd2 {[%clk 0:02:09]}  Qxa2 {[%clk 0:02:34]} 19. Nxe4 {[%clk 0:02:09]}  dxe4 {[%clk 0:02:20]} 20. Nxe6 {[%clk 0:02:04]}  Qxe6 {[%clk 0:02:19]} 21. Qb5 {[%clk 0:02:03]}  Rxc1 {[%clk 0:02:18]} 22. Rxc1 {[%clk 0:02:03]}  Rc8 {[%clk 0:02:19]} 23. Rd1 {[%clk 0:02:02]}  Qd6 {[%clk 0:02:12]} 24. Bf1 {[%clk 0:01:59]}  Bf6 {[%clk 0:02:02]} 25. b3 {[%clk 0:01:46]}  Rc2 {[%clk 0:01:57]} 26. Bc4 {[%clk 0:01:42]}  Kg7 {[%clk 0:01:46]} 27. Qe8 {[%clk 0:01:35]}  Qe7 {[%clk 0:01:41]} 28. Qb8 {[%clk 0:01:29]}  Qd7 {[%clk 0:01:09]} 29. Ra1 {[%clk 0:01:13]}  a5 {[%clk 0:00:28]} 30. h5 {[%clk 0:00:38]}  Bd8 {[%clk 0:00:27]} 31. Qe5+ {[%clk 0:00:37]}  f6 {[%clk 0:00:24]} 32. Qb8 {[%clk 0:00:29]}  Qc7 {[%clk 0:00:16]} 33. Qa8 {[%clk 0:00:21]}  Kh6 {[%clk 0:00:16]} 34. hxg6 {[%clk 0:00:21]}  hxg6 {[%clk 0:00:17]} 35. Qd5 {[%clk 0:00:18]}  Kg5 {[%clk 0:00:15]} 36. Qg8 {[%clk 0:00:14]}  Kh6 {[%clk 0:00:05]} 37. Kg2 {[%clk 0:00:13]}  Kg5 {[%clk 0:00:00]} 38. Qh8 {[%clk 0:00:12]} 1-0


[Site "https://www.chess.com"]

[Event "Titled Tuesday Blitz May 16 Early 2023"]
[White "Goldin, Roman"]
[Black "electrosaw"]
[WhiteFideId "2803860"]
[WhiteElo "2312"]
[BlackElo "2464"]
[Result "1-0"]
[Round "08"]
[TimeControl "180+2"]
[Date "2023.05.16"]
[WhiteClock "0:00:16"]
[BlackClock "0:00:18"]

1. e4 {[%clk 0:02:59]}  c5 {[%clk 0:02:59]} 2. Nf3 {[%clk 0:02:59]}  g6 {[%clk 0:02:59]} 3. Bc4 {[%clk 0:02:54]}  Nc6 {[%clk 0:02:58]} 4. d3 {[%clk 0:02:54]}  Bg7 {[%clk 0:02:57]} 5. a3 {[%clk 0:02:53]}  e6 {[%clk 0:02:58]} 6. O-O {[%clk 0:02:51]}  Nge7 {[%clk 0:02:58]} 7. Ba2 {[%clk 0:02:51]}  d5 {[%clk 0:02:58]} 8. Nc3 {[%clk 0:02:49]}  O-O {[%clk 0:02:58]} 9. h3 {[%clk 0:02:42]}  a6 {[%clk 0:02:57]} 10. exd5 {[%clk 0:02:40]}  exd5 {[%clk 0:02:57]} 11. Bf4 {[%clk 0:02:40]}  Be6 {[%clk 0:02:56]} 12. Re1 {[%clk 0:02:40]}  h6 {[%clk 0:02:54]} 13. Qd2 {[%clk 0:02:39]}  Kh7 {[%clk 0:02:54]} 14. Bh2 {[%clk 0:02:17]}  Nf5 {[%clk 0:02:54]} 15. Ne2 {[%clk 0:02:12]}  Qd7 {[%clk 0:02:45]} 16. c3 {[%clk 0:02:09]}  g5 {[%clk 0:02:23]} 17. d4 {[%clk 0:01:54]}  cxd4 {[%clk 0:02:14]} 18. Nexd4 {[%clk 0:01:46]}  Nfxd4 {[%clk 0:02:09]} 19. cxd4 {[%clk 0:01:26]}  Rac8 {[%clk 0:02:01]} 20. Rad1 {[%clk 0:01:22]}  Bf5 {[%clk 0:01:50]} 21. Ne5 {[%clk 0:01:09]}  Qd8 {[%clk 0:01:47]} 22. g4 {[%clk 0:01:02]}  Bg6 {[%clk 0:01:21]} 23. Nxg6 {[%clk 0:00:52]}  fxg6 {[%clk 0:01:22]} 24. Be5 {[%clk 0:00:49]}  Nxe5 {[%clk 0:01:07]} 25. dxe5 {[%clk 0:00:48]}  Qb6 {[%clk 0:01:08]} 26. e6 {[%clk 0:00:34]}  Rce8 {[%clk 0:01:01]} 27. Bxd5 {[%clk 0:00:33]}  Rf4 {[%clk 0:00:55]} 28. Kg2 {[%clk 0:00:33]}  Bd4 {[%clk 0:00:50]} 29. Re2 {[%clk 0:00:29]}  Qc5 {[%clk 0:00:46]} 30. Bxb7 {[%clk 0:00:19]}  a5 {[%clk 0:00:36]} 31. f3 {[%clk 0:00:19]}  Qd6 {[%clk 0:00:24]} 32. Be4 {[%clk 0:00:17]}  a4 {[%clk 0:00:18]} 33. Qxd4 {[%clk 0:00:16]} 1-0


[Site "https://www.chess.com"]

[Event "Titled Tuesday Blitz May 16 Early 2023"]
[White "dDobravcan"]
[Black "Turzo, Attila"]
[BlackFideId "704954"]
[WhiteElo "2151"]
[BlackElo "2461"]
[Result "0-1"]
[Round "08"]
[TimeControl "180+2"]
[Date "2023.05.16"]
[WhiteClock "0:00:00"]
[BlackClock "0:00:24"]

1. d4 {[%clk 0:03:00]}  d5 {[%clk 0:02:59]} 2. Nc3 {[%clk 0:03:00]}  c6 {[%clk 0:02:59]} 3. Bf4 {[%clk 0:02:59]}  Bf5 {[%clk 0:02:57]} 4. e3 {[%clk 0:02:57]}  e6 {[%clk 0:02:57]} 5. f3 {[%clk 0:02:57]}  Bd6 {[%clk 0:02:48]} 6. Nge2 {[%clk 0:02:45]}  Ne7 {[%clk 0:02:46]} 7. h4 {[%clk 0:02:45]}  h6 {[%clk 0:02:38]} 8. g4 {[%clk 0:02:43]}  Bh7 {[%clk 0:02:34]} 9. Qd2 {[%clk 0:02:42]}  Bxf4 {[%clk 0:02:30]} 10. Nxf4 {[%clk 0:02:32]}  Nd7 {[%clk 0:02:30]} 11. Bd3 {[%clk 0:02:30]}  Bxd3 {[%clk 0:02:27]} 12. Nxd3 {[%clk 0:02:25]}  Qc7 {[%clk 0:02:22]} 13. O-O-O {[%clk 0:02:25]}  O-O-O {[%clk 0:02:21]} 14. e4 {[%clk 0:02:08]}  Kb8 {[%clk 0:02:08]} 15. f4 {[%clk 0:02:03]}  h5 {[%clk 0:01:56]} 16. f5 {[%clk 0:01:45]}  dxe4 {[%clk 0:01:42]} 17. Nxe4 {[%clk 0:01:34]}  exf5 {[%clk 0:01:41]} 18. Ng5 {[%clk 0:01:32]}  Rdf8 {[%clk 0:01:34]} 19. gxh5 {[%clk 0:01:25]}  Rxh5 {[%clk 0:01:29]} 20. Rde1 {[%clk 0:01:20]}  Nd5 {[%clk 0:01:24]} 21. c4 {[%clk 0:01:16]}  N5f6 {[%clk 0:01:15]} 22. Qf2 {[%clk 0:01:02]}  g6 {[%clk 0:01:11]} 23. Re7 {[%clk 0:00:58]}  Qd6 {[%clk 0:00:52]} 24. Rhe1 {[%clk 0:00:55]}  Ne4 {[%clk 0:00:45]} 25. R7xe4 {[%clk 0:00:40]}  fxe4 {[%clk 0:00:43]} 26. Nxe4 {[%clk 0:00:40]}  Qc7 {[%clk 0:00:39]} 27. d5 {[%clk 0:00:39]}  Ne5 {[%clk 0:00:37]} 28. Ndc5 {[%clk 0:00:25]}  cxd5 {[%clk 0:00:33]} 29. cxd5 {[%clk 0:00:22]}  Nd3+ {[%clk 0:00:32]} 30. Kb1 {[%clk 0:00:18]}  Nxf2 {[%clk 0:00:32]} 31. d6 {[%clk 0:00:19]}  Qc6 {[%clk 0:00:26]} 32. b4 {[%clk 0:00:08]}  Nxe4 {[%clk 0:00:25]} 33. Rxe4 {[%clk 0:00:00]}  Qxd6 {[%clk 0:00:24]} 0-1


[Site "https://www.chess.com"]

[Event "Titled Tuesday Blitz May 16 Early 2023"]
[White "Rom, Jasper"]
[Black "KSho99"]
[WhiteFideId "2023733"]
[WhiteElo "2233"]
[BlackElo "2173"]
[Result "1-0"]
[Round "08"]
[TimeControl "180+2"]
[Date "2023.05.16"]
[WhiteClock "0:00:12"]
[BlackClock "0:00:00"]

1. e4 {[%clk 0:02:52]}  e6 {[%clk 0:03:00]} 2. d4 {[%clk 0:02:51]}  d5 {[%clk 0:03:00]} 3. Bd3 {[%clk 0:02:51]}  dxe4 {[%clk 0:03:00]} 4. Bxe4 {[%clk 0:02:52]}  Nf6 {[%clk 0:03:00]} 5. Bf3 {[%clk 0:02:52]}  Bd6 {[%clk 0:02:57]} 6. Ne2 {[%clk 0:02:52]}  e5 {[%clk 0:02:48]} 7. dxe5 {[%clk 0:02:50]}  Bxe5 {[%clk 0:02:48]} 8. Qxd8+ {[%clk 0:02:50]}  Kxd8 {[%clk 0:02:49]} 9. Nd2 {[%clk 0:02:45]}  c6 {[%clk 0:02:45]} 10. Nc4 {[%clk 0:02:45]}  Bc7 {[%clk 0:02:44]} 11. Bg5 {[%clk 0:02:45]}  Nd7 {[%clk 0:02:39]} 12. O-O-O {[%clk 0:02:44]}  b5 {[%clk 0:02:29]} 13. Bxf6+ {[%clk 0:02:41]}  gxf6 {[%clk 0:02:28]} 14. Bxc6 {[%clk 0:02:38]}  Rb8 {[%clk 0:02:26]} 15. Ne3 {[%clk 0:02:31]}  Rb6 {[%clk 0:02:24]} 16. Nd4 {[%clk 0:02:17]}  Be5 {[%clk 0:02:19]} 17. Nef5 {[%clk 0:01:51]}  Kc7 {[%clk 0:02:18]} 18. Bxb5 {[%clk 0:01:40]}  Nc5 {[%clk 0:02:09]} 19. Ne3 {[%clk 0:01:24]}  Bb7 {[%clk 0:01:48]} 20. Bc4 {[%clk 0:01:00]}  Ne6 {[%clk 0:01:32]} 21. Nb5+ {[%clk 0:00:45]}  Kb8 {[%clk 0:01:28]} 22. c3 {[%clk 0:00:39]}  Rc8 {[%clk 0:01:17]} 23. Bxe6 {[%clk 0:00:32]}  fxe6 {[%clk 0:01:15]} 24. Nd4 {[%clk 0:00:32]}  Be4 {[%clk 0:00:52]} 25. Rhe1 {[%clk 0:00:32]}  Bg6 {[%clk 0:00:47]} 26. g3 {[%clk 0:00:28]}  Ra6 {[%clk 0:00:44]} 27. a3 {[%clk 0:00:27]}  Ra4 {[%clk 0:00:40]} 28. f4 {[%clk 0:00:27]}  Bxd4 {[%clk 0:00:41]} 29. Nc2 {[%clk 0:00:15]}  Bb6 {[%clk 0:00:18]} 30. Rxe6 {[%clk 0:00:15]}  Re4 {[%clk 0:00:13]} 31. Rxf6 {[%clk 0:00:14]}  Re2 {[%clk 0:00:12]} 32. Rd2 {[%clk 0:00:14]}  Rce8 {[%clk 0:00:07]} 33. Nd4 {[%clk 0:00:12]}  Re1+ {[%clk 0:00:05]} 34. Rd1 {[%clk 0:00:12]}  Rxd1+ {[%clk 0:00:02]} 35. Kxd1 {[%clk 0:00:13]}  Rd8 {[%clk 0:00:02]} 36. Ke2 {[%clk 0:00:11]}  Bxd4 {[%clk 0:00:02]} 37. cxd4 {[%clk 0:00:12]}  Rxd4 {[%clk 0:00:02]} 38. f5 {[%clk 0:00:13]}  Be8 {[%clk 0:00:02]} 39. Rf8 {[%clk 0:00:13]}  Re4+ {[%clk 0:00:02]} 40. Kf3 {[%clk 0:00:13]}  Re1 {[%clk 0:00:02]} 41. f6 {[%clk 0:00:12]}  Kc7 {[%clk 0:00:03]} 42. f7 {[%clk 0:00:13]}  Bd7 {[%clk 0:00:03]} 43. Rc8+ {[%clk 0:00:12]}  Bxc8 {[%clk 0:00:02]} 44. Kf2 {[%clk 0:00:13]}  Re5 {[%clk 0:00:01]} 45. f8=Q {[%clk 0:00:13]}  Rf5+ {[%clk 0:00:01]} 46. Qxf5 {[%clk 0:00:13]}  Bxf5 {[%clk 0:00:02]} 47. Ke3 {[%clk 0:00:14]}  Kd6 {[%clk 0:00:02]} 48. Kf4 {[%clk 0:00:14]}  Bd7 {[%clk 0:00:02]} 49. Kg5 {[%clk 0:00:14]}  Ke5 {[%clk 0:00:00]} 50. g4 {[%clk 0:00:12]} 1-0


[Site "https://www.chess.com"]